[Event "Titled Tuesday Blitz May 23 Early 2023"]
[White "Georg, Heinz"]
[Black "Wadsworth, Matthew J"]
[WhiteFideId "4607295"]
[BlackFideId "415804"]
[WhiteElo "2314"]
[BlackElo "2347"]
[Result "0-1"]
[Round "05"]
[TimeControl "180+2"]
[Date "2023.05.23"]
[WhiteClock "0:00:16"]
[BlackClock "0:00:30"]

1. e4 {[%clk 0:03:00]}  c5 {[%clk 0:02:58]} 2. Nf3 {[%clk 0:03:00]}  e6 {[%clk 0:02:57]} 3. b3 {[%clk 0:03:00]}  Nc6 {[%clk 0:02:55]} 4. Bb2 {[%clk 0:03:00]}  d6 {[%clk 0:02:55]} 5. d4 {[%clk 0:02:59]}  cxd4 {[%clk 0:02:53]} 6. Nxd4 {[%clk 0:03:00]}  Nf6 {[%clk 0:02:51]} 7. Bd3 {[%clk 0:03:00]}  Be7 {[%clk 0:02:50]} 8. O-O {[%clk 0:02:59]}  O-O {[%clk 0:02:49]} 9. Nd2 {[%clk 0:02:59]}  a6 {[%clk 0:02:43]} 10. c4 {[%clk 0:02:56]}  Qc7 {[%clk 0:02:38]} 11. Rc1 {[%clk 0:02:55]}  Ne5 {[%clk 0:02:27]} 12. Bb1 {[%clk 0:02:54]}  b6 {[%clk 0:02:26]} 13. h3 {[%clk 0:02:50]}  Bb7 {[%clk 0:02:25]} 14. f4 {[%clk 0:02:50]}  Ned7 {[%clk 0:02:25]} 15. Qe2 {[%clk 0:02:48]}  Rac8 {[%clk 0:02:11]} 16. f5 {[%clk 0:02:28]}  e5 {[%clk 0:02:09]} 17. N4f3 {[%clk 0:02:28]}  Nc5 {[%clk 0:02:02]} 18. g4 {[%clk 0:02:18]}  Qc6 {[%clk 0:02:01]} 19. Rce1 {[%clk 0:02:07]}  h6 {[%clk 0:01:53]} 20. Kh2 {[%clk 0:02:04]}  b5 {[%clk 0:01:52]} 21. cxb5 {[%clk 0:01:58]}  Qxb5 {[%clk 0:01:51]} 22. Qg2 {[%clk 0:01:51]}  Nd3 {[%clk 0:01:42]} 23. Bxd3 {[%clk 0:01:42]}  Qxd3 {[%clk 0:01:42]} 24. Nc4 {[%clk 0:01:22]}  Rxc4 {[%clk 0:01:30]} 25. bxc4 {[%clk 0:01:21]}  Bxe4 {[%clk 0:01:30]} 26. Qe2 {[%clk 0:01:01]}  Qxe2+ {[%clk 0:01:29]} 27. Rxe2 {[%clk 0:01:01]}  Bd3 {[%clk 0:01:30]} 28. Rfe1 {[%clk 0:01:00]}  Bxe2 {[%clk 0:01:25]} 29. Rxe2 {[%clk 0:01:00]}  Rc8 {[%clk 0:01:25]} 30. Nd2 {[%clk 0:01:00]}  Nd7 {[%clk 0:01:23]} 31. Ba3 {[%clk 0:00:57]}  Nb6 {[%clk 0:01:15]} 32. c5 {[%clk 0:00:53]}  dxc5 {[%clk 0:01:15]} 33. Ne4 {[%clk 0:00:43]}  Nc4 {[%clk 0:01:06]} 34. Bc1 {[%clk 0:00:40]}  Nd6 {[%clk 0:01:04]} 35. Nc3 {[%clk 0:00:39]}  Nb5 {[%clk 0:01:04]} 36. Nd5 {[%clk 0:00:39]}  Bd6 {[%clk 0:01:03]} 37. f6 {[%clk 0:00:37]}  gxf6 {[%clk 0:00:53]} 38. Nxf6+ {[%clk 0:00:36]}  Kg7 {[%clk 0:00:51]} 39. Ne4 {[%clk 0:00:34]}  Be7 {[%clk 0:00:35]} 40. Ng3 {[%clk 0:00:30]}  Nd4 {[%clk 0:00:31]} 41. Rxe5 {[%clk 0:00:16]}  Nf3+ {[%clk 0:00:30]} 0-1


[Site "https://www.chess.com"]

[Event "Titled Tuesday Blitz May 23 Early 2023"]
[White "Manon-og, Ramon Jr."]
[Black "Berezin, Viktor"]
[WhiteFideId "5200776"]
[BlackFideId "14107872"]
[WhiteElo "2308"]
[BlackElo "2310"]
[Result "0-1"]
[Round "05"]
[TimeControl "180+2"]
[Date "2023.05.23"]
[WhiteClock "0:01:42"]
[BlackClock "0:01:31"]

1. e4 {[%clk 0:03:00]}  g6 {[%clk 0:02:58]} 2. d4 {[%clk 0:03:00]}  Bg7 {[%clk 0:02:54]} 3. Nc3 {[%clk 0:02:59]}  d6 {[%clk 0:02:55]} 4. Be3 {[%clk 0:02:59]}  Nf6 {[%clk 0:02:55]} 5. Qd2 {[%clk 0:03:00]}  c6 {[%clk 0:02:55]} 6. Nf3 {[%clk 0:02:59]}  O-O {[%clk 0:02:54]} 7. Bh6 {[%clk 0:02:59]}  b5 {[%clk 0:02:54]} 8. Bxg7 {[%clk 0:02:58]}  Kxg7 {[%clk 0:02:55]} 9. a3 {[%clk 0:02:59]}  a5 {[%clk 0:02:54]} 10. Be2 {[%clk 0:02:59]}  Na6 {[%clk 0:02:54]} 11. Qf4 {[%clk 0:02:49]}  b4 {[%clk 0:02:51]} 12. axb4 {[%clk 0:02:49]}  Nxb4 {[%clk 0:02:51]} 13. Bd3 {[%clk 0:02:46]}  Nxd3+ {[%clk 0:02:48]} 14. cxd3 {[%clk 0:02:47]}  Qb6 {[%clk 0:02:47]} 15. Ra2 {[%clk 0:02:42]}  Ba6 {[%clk 0:02:45]} 16. e5 {[%clk 0:02:40]}  Nd5 {[%clk 0:02:35]} 17. Qd2 {[%clk 0:02:34]}  Nb4 {[%clk 0:02:32]} 18. O-O {[%clk 0:02:14]}  Nxa2 {[%clk 0:02:26]} 19. Nxa2 {[%clk 0:02:15]}  Rab8 {[%clk 0:02:23]} 20. Rb1 {[%clk 0:02:14]}  a4 {[%clk 0:02:17]} 21. h4 {[%clk 0:02:07]}  a3 {[%clk 0:02:16]} 22. b4 {[%clk 0:02:07]}  c5 {[%clk 0:02:06]} 23. dxc5 {[%clk 0:01:58]}  dxc5 {[%clk 0:02:06]} 24. h5 {[%clk 0:01:58]}  cxb4 {[%clk 0:01:55]} 25. Rxb4 {[%clk 0:01:54]}  Qc5 {[%clk 0:01:47]} 26. Rh4 {[%clk 0:01:48]}  Rb2 {[%clk 0:01:31]} 27. Qf4 {[%clk 0:01:43]}  Qxf2+ {[%clk 0:01:30]} 28. Kh1 {[%clk 0:01:42]}  Qxg2# {[%clk 0:01:31]} 0-1


[Site "https://www.chess.com"]

[Event "Titled Tuesday Blitz May 23 Early 2023"]
[White "Estrada Nieto, Julian"]
[Black "Rose, Felix"]
[WhiteFideId "5101018"]
[BlackFideId "5105722"]
[WhiteElo "2161"]
[BlackElo "2039"]
[Result "1-0"]
[Round "05"]
[TimeControl "180+2"]
[Date "2023.05.23"]
[WhiteClock "0:00:33"]
[BlackClock "0:00:13"]

1. e4 {[%clk 0:02:46]}  c6 {[%clk 0:02:59]} 2. d4 {[%clk 0:02:44]}  d5 {[%clk 0:03:00]} 3. Nc3 {[%clk 0:02:45]}  dxe4 {[%clk 0:02:59]} 4. Nxe4 {[%clk 0:02:46]}  Nf6 {[%clk 0:03:00]} 5. Nxf6+ {[%clk 0:02:46]}  exf6 {[%clk 0:03:01]} 6. c3 {[%clk 0:02:46]}  Bd6 {[%clk 0:03:01]} 7. Bd3 {[%clk 0:02:47]}  O-O {[%clk 0:03:01]} 8. Ne2 {[%clk 0:02:47]}  Re8 {[%clk 0:03:02]} 9. Qc2 {[%clk 0:02:48]}  h5 {[%clk 0:03:02]} 10. h3 {[%clk 0:02:47]}  Qc7 {[%clk 0:02:56]} 11. O-O {[%clk 0:02:37]}  Nd7 {[%clk 0:02:54]} 12. Bd2 {[%clk 0:02:36]}  Nf8 {[%clk 0:02:54]} 13. Rae1 {[%clk 0:02:35]}  Be6 {[%clk 0:02:51]} 14. c4 {[%clk 0:02:33]}  c5 {[%clk 0:02:44]} 15. d5 {[%clk 0:02:32]}  Bd7 {[%clk 0:02:44]} 16. Nc3 {[%clk 0:02:27]}  a6 {[%clk 0:02:32]} 17. Ne4 {[%clk 0:02:16]}  Be5 {[%clk 0:02:14]} 18. Re2 {[%clk 0:02:04]}  f5 {[%clk 0:02:00]} 19. Ng5 {[%clk 0:01:55]}  Bh2+ {[%clk 0:01:55]} 20. Kh1 {[%clk 0:01:55]}  Rxe2 {[%clk 0:01:51]} 21. Bxe2 {[%clk 0:01:55]}  Bf4 {[%clk 0:00:50]} 22. Bxh5 {[%clk 0:01:43]}  g6 {[%clk 0:00:50]} 23. Be2 {[%clk 0:01:31]}  Re8 {[%clk 0:00:49]} 24. Bd3 {[%clk 0:01:30]}  Bxd2 {[%clk 0:00:41]} 25. Qxd2 {[%clk 0:01:29]}  Qe5 {[%clk 0:00:40]} 26. Nf3 {[%clk 0:01:27]}  Qf6 {[%clk 0:00:36]} 27. b3 {[%clk 0:01:21]}  b5 {[%clk 0:00:34]} 28. Re1 {[%clk 0:01:20]}  Rxe1+ {[%clk 0:00:33]} 29. Qxe1 {[%clk 0:01:20]}  b4 {[%clk 0:00:27]} 30. Qe5 {[%clk 0:01:19]}  Qd8 {[%clk 0:00:20]} 31. Qd6 {[%clk 0:01:14]}  g5 {[%clk 0:00:14]} 32. Bxf5 {[%clk 0:01:06]}  Qe8 {[%clk 0:00:15]} 33. Bxd7 {[%clk 0:01:03]}  Nxd7 {[%clk 0:00:15]} 34. Nxg5 {[%clk 0:00:58]}  Qe1+ {[%clk 0:00:16]} 35. Kh2 {[%clk 0:00:58]}  Qxf2 {[%clk 0:00:15]} 36. Ne4 {[%clk 0:00:46]}  Qf5 {[%clk 0:00:13]} 37. Qxd7 {[%clk 0:00:40]}  Qxe4 {[%clk 0:00:14]} 38. Qg4+ {[%clk 0:00:39]}  Qxg4 {[%clk 0:00:13]} 39. hxg4 {[%clk 0:00:40]}  a5 {[%clk 0:00:14]} 40. Kg3 {[%clk 0:00:39]}  Kf8 {[%clk 0:00:14]} 41. Kf4 {[%clk 0:00:39]}  a4 {[%clk 0:00:13]} 42. bxa4 {[%clk 0:00:33]} 1-0


[Site "https://www.chess.com"]

[Event "Titled Tuesday Blitz May 23 Early 2023"]
[White "Bashkansky, Ethan"]
[Black "Omariev, Maksim"]
[WhiteFideId "2071533"]
[BlackFideId "4193423"]
[WhiteElo "2295"]
[BlackElo "2485"]
[Result "1-0"]
[Round "05"]
[TimeControl "180+2"]
[Date "2023.05.23"]
[WhiteClock "0:00:10"]
[BlackClock "0:00:03"]

1. d4 {[%clk 0:03:00]}  d5 {[%clk 0:02:53]} 2. c4 {[%clk 0:03:01]}  e6 {[%clk 0:02:53]} 3. Nc3 {[%clk 0:03:01]}  Nf6 {[%clk 0:02:52]} 4. cxd5 {[%clk 0:03:01]}  exd5 {[%clk 0:02:53]} 5. Bg5 {[%clk 0:03:02]}  Be7 {[%clk 0:02:53]} 6. e3 {[%clk 0:03:02]}  c6 {[%clk 0:02:53]} 7. Bd3 {[%clk 0:03:01]}  Bg4 {[%clk 0:02:54]} 8. Qc2 {[%clk 0:02:59]}  Bh5 {[%clk 0:02:54]} 9. Nge2 {[%clk 0:02:57]}  Bg6 {[%clk 0:02:54]} 10. O-O {[%clk 0:02:54]}  Bxd3 {[%clk 0:02:51]} 11. Qxd3 {[%clk 0:02:55]}  Nbd7 {[%clk 0:02:51]} 12. Rab1 {[%clk 0:02:55]}  a5 {[%clk 0:02:50]} 13. a3 {[%clk 0:02:48]}  O-O {[%clk 0:02:48]} 14. h3 {[%clk 0:02:42]}  Re8 {[%clk 0:02:45]} 15. b4 {[%clk 0:02:34]}  axb4 {[%clk 0:02:45]} 16. axb4 {[%clk 0:02:35]}  b5 {[%clk 0:02:46]} 17. Ng3 {[%clk 0:02:31]}  h6 {[%clk 0:02:43]} 18. Bxf6 {[%clk 0:02:28]}  Bxf6 {[%clk 0:02:37]} 19. Nf5 {[%clk 0:02:14]}  Nb6 {[%clk 0:02:35]} 20. e4 {[%clk 0:02:08]}  Ra3 {[%clk 0:02:13]} 21. e5 {[%clk 0:02:03]}  Be7 {[%clk 0:02:09]} 22. Qg3 {[%clk 0:01:53]}  Bg5 {[%clk 0:00:56]} 23. f4 {[%clk 0:01:27]}  Na4 {[%clk 0:00:56]} 24. Rbc1 {[%clk 0:01:16]}  Nxc3 {[%clk 0:00:44]} 25. Rxc3 {[%clk 0:01:13]}  Rxc3 {[%clk 0:00:45]} 26. Qxc3 {[%clk 0:01:13]}  Be7 {[%clk 0:00:46]} 27. Qg3 {[%clk 0:01:13]}  Bf8 {[%clk 0:00:40]} 28. Nxh6+ {[%clk 0:01:13]}  Kh7 {[%clk 0:00:40]} 29. Nxf7 {[%clk 0:01:13]}  Qd7 {[%clk 0:00:33]} 30. Ng5+ {[%clk 0:01:07]}  Kg8 {[%clk 0:00:29]} 31. Qh4 {[%clk 0:01:05]}  g6 {[%clk 0:00:29]} 32. e6 {[%clk 0:01:02]}  Qg7 {[%clk 0:00:29]} 33. Kh1 {[%clk 0:00:57]}  Bxb4 {[%clk 0:00:29]} 34. f5 {[%clk 0:00:56]}  Be7 {[%clk 0:00:26]} 35. Qg4 {[%clk 0:00:19]}  Rf8 {[%clk 0:00:23]} 36. Nf7 {[%clk 0:00:17]}  gxf5 {[%clk 0:00:17]} 37. Qxf5 {[%clk 0:00:17]}  Qxd4 {[%clk 0:00:12]} 38. Rf4 {[%clk 0:00:18]}  Qa1+ {[%clk 0:00:06]} 39. Kh2 {[%clk 0:00:18]}  Bf6 {[%clk 0:00:02]} 40. Qxf6 {[%clk 0:00:12]}  Qxf6 {[%clk 0:00:01]} 41. Rxf6 {[%clk 0:00:13]}  Kg7 {[%clk 0:00:01]} 42. e7 {[%clk 0:00:10]}  Re8 {[%clk 0:00:01]} 43. Rf2 {[%clk 0:00:03]}  Rxe7 {[%clk 0:00:01]} 44. Nd6 {[%clk 0:00:03]}  d4 {[%clk 0:00:01]} 45. Nf5+ {[%clk 0:00:03]}  Kf6 {[%clk 0:00:01]} 46. Nxe7+ {[%clk 0:00:04]}  Kxe7 {[%clk 0:00:02]} 47. h4 {[%clk 0:00:04]}  c5 {[%clk 0:00:02]} 48. h5 {[%clk 0:00:04]}  d3 {[%clk 0:00:02]} 49. h6 {[%clk 0:00:05]}  c4 {[%clk 0:00:02]} 50. h7 {[%clk 0:00:06]}  c3 {[%clk 0:00:03]} 51. h8=Q {[%clk 0:00:06]}  d2 {[%clk 0:00:04]} 52. Qh7+ {[%clk 0:00:04]}  Ke6 {[%clk 0:00:03]} 53. Qc2 {[%clk 0:00:05]}  b4 {[%clk 0:00:03]} 54. Rxd2 {[%clk 0:00:06]}  b3 {[%clk 0:00:02]} 55. Qxc3 {[%clk 0:00:06]}  b2 {[%clk 0:00:03]} 56. Rxb2 {[%clk 0:00:07]}  Kd5 {[%clk 0:00:03]} 57. Qb3+ {[%clk 0:00:06]}  Ke4 {[%clk 0:00:04]} 58. Qa3 {[%clk 0:00:06]}  Kf4 {[%clk 0:00:04]} 59. Rb4+ {[%clk 0:00:07]}  Kg5 {[%clk 0:00:04]} 60. Qa5+ {[%clk 0:00:08]}  Kh6 {[%clk 0:00:05]} 61. Rb6+ {[%clk 0:00:09]}  Kg7 {[%clk 0:00:03]} 62. Qa7+ {[%clk 0:00:10]} 1-0


[Site "https://www.chess.com"]

[Event "Titled Tuesday Blitz May 23 Early 2023"]
[White "Koutlas, Nikolaos"]
[Black "Jimenez Fernandez, Rebeca"]
[WhiteFideId "25827138"]
[BlackFideId "32070934"]
[WhiteElo "2215"]
[BlackElo "2008"]
[Result "1-0"]
[Round "05"]
[TimeControl "180+2"]
[Date "2023.05.23"]
[WhiteClock "0:01:00"]
[BlackClock "0:00:03"]

1. e4 {[%clk 0:03:00]}  g6 {[%clk 0:02:58]} 2. Nc3 {[%clk 0:02:53]}  Bg7 {[%clk 0:02:58]} 3. g3 {[%clk 0:02:47]}  d6 {[%clk 0:02:58]} 4. Bg2 {[%clk 0:02:45]}  c5 {[%clk 0:02:58]} 5. f4 {[%clk 0:02:44]}  Nc6 {[%clk 0:02:58]} 6. Nf3 {[%clk 0:02:45]}  e6 {[%clk 0:02:57]} 7. O-O {[%clk 0:02:45]}  Nge7 {[%clk 0:02:57]} 8. d3 {[%clk 0:02:46]}  O-O {[%clk 0:02:56]} 9. Kh1 {[%clk 0:02:46]}  f5 {[%clk 0:02:49]} 10. Be3 {[%clk 0:02:35]}  Nd4 {[%clk 0:02:46]} 11. e5 {[%clk 0:02:27]}  Nxf3 {[%clk 0:02:04]} 12. Qxf3 {[%clk 0:02:28]}  dxe5 {[%clk 0:02:02]} 13. fxe5 {[%clk 0:02:21]}  Bxe5 {[%clk 0:01:58]} 14. Bxc5 {[%clk 0:02:21]}  Bg7 {[%clk 0:01:56]} 15. Rae1 {[%clk 0:02:20]}  Rb8 {[%clk 0:01:56]} 16. Qf4 {[%clk 0:02:10]}  Bd7 {[%clk 0:01:27]} 17. Bxa7 {[%clk 0:01:57]}  Ra8 {[%clk 0:01:24]} 18. Bd4 {[%clk 0:01:51]}  Bc6 {[%clk 0:01:06]} 19. Bxg7 {[%clk 0:01:43]}  Bxg2+ {[%clk 0:00:53]} 20. Kxg2 {[%clk 0:01:44]}  Kxg7 {[%clk 0:00:53]} 21. Rxe6 {[%clk 0:01:34]}  Kg8 {[%clk 0:00:20]} 22. Rfe1 {[%clk 0:01:12]}  Nd5 {[%clk 0:00:20]} 23. Qc4 {[%clk 0:01:06]}  Nxc3 {[%clk 0:00:13]} 24. Rd6+ {[%clk 0:01:00]}  Kg7 {[%clk 0:00:03]} 1-0


[Site "https://www.chess.com"]

[Event "Titled Tuesday Blitz May 23 Early 2023"]
[White "Rosh Jain"]
[Black "Ljukin, Sergei"]
[WhiteFideId "25789465"]
[BlackFideId "14102200"]
[WhiteElo "2233"]
[BlackElo "2312"]
[Result "0-1"]
[Round "05"]
[TimeControl "180+2"]
[Date "2023.05.23"]
[WhiteClock "0:00:03"]
[BlackClock "0:00:07"]

1. e4 {[%clk 0:02:57]}  e6 {[%clk 0:02:59]} 2. d4 {[%clk 0:02:56]}  d5 {[%clk 0:03:00]} 3. Nc3 {[%clk 0:02:56]}  Bb4 {[%clk 0:02:59]} 4. exd5 {[%clk 0:02:55]}  exd5 {[%clk 0:02:59]} 5. Bd3 {[%clk 0:02:54]}  Nf6 {[%clk 0:02:59]} 6. Qf3 {[%clk 0:02:53]}  c5 {[%clk 0:02:22]} 7. Ne2 {[%clk 0:02:50]}  Bg4 {[%clk 0:02:05]} 8. Qe3+ {[%clk 0:02:48]}  Be6 {[%clk 0:01:59]} 9. dxc5 {[%clk 0:01:49]}  O-O {[%clk 0:01:46]} 10. O-O {[%clk 0:01:46]}  Nbd7 {[%clk 0:01:16]} 11. Na4 {[%clk 0:01:41]}  Qa5 {[%clk 0:01:11]} 12. b3 {[%clk 0:01:28]}  Nxc5 {[%clk 0:01:04]} 13. a3 {[%clk 0:01:19]}  Nxd3 {[%clk 0:01:04]} 14. Qxd3 {[%clk 0:01:19]}  Be7 {[%clk 0:00:54]} 15. Bb2 {[%clk 0:01:18]}  Rac8 {[%clk 0:00:45]} 16. Nd4 {[%clk 0:01:15]}  Ne4 {[%clk 0:00:40]} 17. Nxe6 {[%clk 0:00:45]}  fxe6 {[%clk 0:00:40]} 18. Rac1 {[%clk 0:00:12]}  b5 {[%clk 0:00:34]} 19. f3 {[%clk 0:00:13]}  Nf6 {[%clk 0:00:34]} 20. Nc3 {[%clk 0:00:12]}  Qb6+ {[%clk 0:00:17]} 21. Kh1 {[%clk 0:00:12]}  a6 {[%clk 0:00:17]} 22. Ne2 {[%clk 0:00:11]}  Bc5 {[%clk 0:00:17]} 23. Rce1 {[%clk 0:00:10]}  Bf2 {[%clk 0:00:16]} 24. Rd1 {[%clk 0:00:11]}  Rfd8 {[%clk 0:00:15]} 25. Nf4 {[%clk 0:00:10]}  Bc5 {[%clk 0:00:14]} 26. Rde1 {[%clk 0:00:10]}  Re8 {[%clk 0:00:15]} 27. Bxf6 {[%clk 0:00:09]}  gxf6 {[%clk 0:00:15]} 28. Nh5 {[%clk 0:00:09]}  Be7 {[%clk 0:00:13]} 29. f4 {[%clk 0:00:07]}  Kh8 {[%clk 0:00:12]} 30. Qh3 {[%clk 0:00:06]}  Rc6 {[%clk 0:00:10]} 31. Qg3 {[%clk 0:00:05]}  Rg8 {[%clk 0:00:10]} 32. Qf3 {[%clk 0:00:05]}  Qb7 {[%clk 0:00:09]} 33. f5 {[%clk 0:00:05]}  e5 {[%clk 0:00:09]} 34. Qxd5 {[%clk 0:00:04]}  Rb6 {[%clk 0:00:08]} 35. Qxb7 {[%clk 0:00:03]}  Rxb7 {[%clk 0:00:09]} 36. Rd1 {[%clk 0:00:03]}  Rc7 {[%clk 0:00:09]} 37. Rf2 {[%clk 0:00:03]}  Bc5 {[%clk 0:00:09]} 38. Re2 {[%clk 0:00:03]}  Bd4 {[%clk 0:00:09]} 39. Nxf6 {[%clk 0:00:03]}  Rf8 {[%clk 0:00:09]} 40. Nd5 {[%clk 0:00:04]}  Rc5 {[%clk 0:00:08]} 41. Ne3 {[%clk 0:00:03]}  Rc3 {[%clk 0:00:09]} 42. Nd5 {[%clk 0:00:03]}  Rc5 {[%clk 0:00:09]} 43. Ne7 {[%clk 0:00:04]}  Rf7 {[%clk 0:00:08]} 44. f6 {[%clk 0:00:03]}  Rxf6 {[%clk 0:00:08]} 45. c3 {[%clk 0:00:02]}  Rxc3 {[%clk 0:00:08]} 46. Nd5 {[%clk 0:00:02]}  Rfc6 {[%clk 0:00:07]} 47. Nxc3 {[%clk 0:00:02]}  Rxc3 {[%clk 0:00:07]} 48. b4 {[%clk 0:00:02]}  Rxa3 {[%clk 0:00:07]} 49. h3 {[%clk 0:00:03]}  Rb3 {[%clk 0:00:08]} 50. Kh2 {[%clk 0:00:03]}  Rxb4 {[%clk 0:00:08]} 51. Re4 {[%clk 0:00:03]}  Bg1+ {[%clk 0:00:08]} 52. Kh1 {[%clk 0:00:03]}  Rxe4 {[%clk 0:00:08]} 53. Rxg1 {[%clk 0:00:02]}  Rc4 {[%clk 0:00:07]} 54. Rf1 {[%clk 0:00:02]}  Kg7 {[%clk 0:00:06]} 55. Rd1 {[%clk 0:00:02]}  Ra4 {[%clk 0:00:05]} 56. Rd7+ {[%clk 0:00:02]}  Kg6 {[%clk 0:00:06]} 57. Rd6+ {[%clk 0:00:03]}  Kf5 {[%clk 0:00:06]} 58. Rd7 {[%clk 0:00:03]}  h5 {[%clk 0:00:06]} 59. g3 {[%clk 0:00:02]}  h4 {[%clk 0:00:06]} 60. g4+ {[%clk 0:00:02]}  Kf4 {[%clk 0:00:06]} 61. Rf7+ {[%clk 0:00:01]}  Kg3 {[%clk 0:00:07]} 62. Rf1 {[%clk 0:00:01]}  Kxh3 {[%clk 0:00:07]} 63. g5 {[%clk 0:00:01]}  Rg4 {[%clk 0:00:06]} 64. g6 {[%clk 0:00:01]}  Rxg6 {[%clk 0:00:06]} 65. Rf3+ {[%clk 0:00:01]}  Rg3 {[%clk 0:00:06]} 66. Rf2 {[%clk 0:00:01]}  Ra3 {[%clk 0:00:06]} 67. Rh2+ {[%clk 0:00:01]}  Kg3 {[%clk 0:00:07]} 68. Rg2+ {[%clk 0:00:02]}  Kf3 {[%clk 0:00:07]} 69. Rf2+ {[%clk 0:00:01]}  Kxf2 {[%clk 0:00:07]} 70. Kh2 {[%clk 0:00:02]}  e4 {[%clk 0:00:07]} 71. Kh1 {[%clk 0:00:03]}  Rh3# {[%clk 0:00:07]} 0-1


[Site "https://www.chess.com"]

[Event "Titled Tuesday Blitz May 23 Early 2023"]
[White "James, Stuart"]
[Black "Sanhueza, Cristian"]
[WhiteFideId "7400489"]
[BlackFideId "116815"]
[WhiteElo "1950"]
[BlackElo "2174"]
[Result "0-1"]
[Round "05"]
[TimeControl "180+2"]
[Date "2023.05.23"]
[WhiteClock "0:00:18"]
[BlackClock "0:00:10"]

1. e4 {[%clk 0:02:58]}  e5 {[%clk 0:02:01]} 2. Nf3 {[%clk 0:02:57]}  Nc6 {[%clk 0:02:00]} 3. Bb5 {[%clk 0:02:57]}  a6 {[%clk 0:02:00]} 4. Ba4 {[%clk 0:02:56]}  Nf6 {[%clk 0:02:01]} 5. d3 {[%clk 0:02:56]}  b5 {[%clk 0:01:59]} 6. Bb3 {[%clk 0:02:56]}  Be7 {[%clk 0:01:52]} 7. a4 {[%clk 0:02:55]}  Rb8 {[%clk 0:01:51]} 8. axb5 {[%clk 0:02:54]}  axb5 {[%clk 0:01:52]} 9. Nc3 {[%clk 0:02:53]}  d6 {[%clk 0:01:51]} 10. Nd5 {[%clk 0:02:52]}  Nxd5 {[%clk 0:01:48]} 11. Bxd5 {[%clk 0:02:52]}  Bd7 {[%clk 0:01:45]} 12. c3 {[%clk 0:02:46]}  O-O {[%clk 0:01:41]} 13. Ra6 {[%clk 0:02:46]}  Qe8 {[%clk 0:01:39]} 14. O-O {[%clk 0:02:41]}  Ra8 {[%clk 0:01:37]} 15. Rxa8 {[%clk 0:02:33]}  Qxa8 {[%clk 0:01:38]} 16. Bg5 {[%clk 0:02:25]}  Qd8 {[%clk 0:01:30]} 17. Qd2 {[%clk 0:02:14]}  Bxg5 {[%clk 0:01:28]} 18. Qxg5 {[%clk 0:02:11]}  Qxg5 {[%clk 0:01:20]} 19. Nxg5 {[%clk 0:02:12]}  Ne7 {[%clk 0:01:20]} 20. Bb3 {[%clk 0:02:04]}  h6 {[%clk 0:01:21]} 21. Nf3 {[%clk 0:02:00]}  Ra8 {[%clk 0:01:21]} 22. d4 {[%clk 0:01:55]}  exd4 {[%clk 0:01:12]} 23. Nxd4 {[%clk 0:01:53]}  c5 {[%clk 0:01:04]} 24. Nf3 {[%clk 0:01:44]}  c4 {[%clk 0:01:02]} 25. Bc2 {[%clk 0:01:44]}  Ra2 {[%clk 0:01:01]} 26. Rb1 {[%clk 0:01:43]}  Ng6 {[%clk 0:00:53]} 27. g3 {[%clk 0:01:38]}  Ne5 {[%clk 0:00:51]} 28. Nxe5 {[%clk 0:01:35]}  dxe5 {[%clk 0:00:52]} 29. f4 {[%clk 0:01:33]}  f6 {[%clk 0:00:49]} 30. Kf2 {[%clk 0:01:28]}  Kf7 {[%clk 0:00:47]} 31. Ke3 {[%clk 0:01:24]}  Ke7 {[%clk 0:00:48]} 32. h4 {[%clk 0:01:16]}  g5 {[%clk 0:00:41]} 33. hxg5 {[%clk 0:01:10]}  hxg5 {[%clk 0:00:41]} 34. fxg5 {[%clk 0:01:09]}  fxg5 {[%clk 0:00:42]} 35. Bd1 {[%clk 0:01:06]}  Bc6 {[%clk 0:00:37]} 36. Bg4 {[%clk 0:01:05]}  Kd6 {[%clk 0:00:35]} 37. Rd1+ {[%clk 0:01:03]}  Kc5 {[%clk 0:00:35]} 38. Rd2 {[%clk 0:01:03]}  b4 {[%clk 0:00:35]} 39. cxb4+ {[%clk 0:01:02]}  Kxb4 {[%clk 0:00:36]} 40. Be6 {[%clk 0:01:02]}  Ra1 {[%clk 0:00:27]} 41. Rc2 {[%clk 0:00:58]}  Re1+ {[%clk 0:00:25]} 42. Kf2 {[%clk 0:00:44]}  Rxe4 {[%clk 0:00:26]} 43. Bf5 {[%clk 0:00:41]}  Rd4 {[%clk 0:00:23]} 44. Be6 {[%clk 0:00:39]}  Kb3 {[%clk 0:00:21]} 45. Rc3+ {[%clk 0:00:39]}  Kxb2 {[%clk 0:00:20]} 46. Rxc4 {[%clk 0:00:39]}  Rxc4 {[%clk 0:00:14]} 47. Bxc4 {[%clk 0:00:40]}  Kc3 {[%clk 0:00:15]} 48. Be2 {[%clk 0:00:34]}  Kd2 {[%clk 0:00:13]} 49. Ba6 {[%clk 0:00:30]}  e4 {[%clk 0:00:11]} 50. Kf1 {[%clk 0:00:26]}  e3 {[%clk 0:00:11]} 51. Bc4 {[%clk 0:00:22]}  Bf3 {[%clk 0:00:10]} 52. Ba6 {[%clk 0:00:18]}  e2+ {[%clk 0:00:09]} 53. Bxe2 {[%clk 0:00:18]}  Bxe2+ {[%clk 0:00:10]} 54. Kf2 {[%clk 0:00:18]}  g4 {[%clk 0:00:10]} 55. Kg2 {[%clk 0:00:18]}  Ke3 {[%clk 0:00:10]} 56. Kh2 {[%clk 0:00:18]}  Kf2 {[%clk 0:00:09]} 57. Kh1 {[%clk 0:00:17]}  Kxg3 {[%clk 0:00:10]} 58. Kg1 {[%clk 0:00:17]}  Kf3 {[%clk 0:00:08]} 59. Kh2 {[%clk 0:00:18]}  g3+ {[%clk 0:00:09]} 60. Kg1 {[%clk 0:00:18]}  g2 {[%clk 0:00:09]} 61. Kh2 {[%clk 0:00:17]}  Kf2 {[%clk 0:00:10]} 62. Kh3 {[%clk 0:00:17]}  g1=Q {[%clk 0:00:10]} 63. Kh4 {[%clk 0:00:18]}  Qg4# {[%clk 0:00:10]} 0-1


[Site "https://www.chess.com"]

[Event "Titled Tuesday Blitz May 23 Early 2023"]
[White "UNSTOPPABLE_LEGEND"]
[Black "Feinig, Mario"]
[BlackFideId "1618113"]
[WhiteElo "2436"]
[BlackElo "2163"]
[Result "1-0"]
[Round "05"]
[TimeControl "180+2"]
[Date "2023.05.23"]
[WhiteClock "0:00:16"]
[BlackClock "0:00:05"]

1. e4 {[%clk 0:02:58]}  c5 {[%clk 0:02:59]} 2. c3 {[%clk 0:02:57]}  Nf6 {[%clk 0:02:49]} 3. e5 {[%clk 0:02:54]}  Nd5 {[%clk 0:02:49]} 4. Nf3 {[%clk 0:02:54]}  d6 {[%clk 0:02:45]} 5. exd6 {[%clk 0:02:53]}  Qxd6 {[%clk 0:02:44]} 6. d4 {[%clk 0:02:46]}  cxd4 {[%clk 0:02:39]} 7. Nxd4 {[%clk 0:02:46]}  Nc6 {[%clk 0:02:35]} 8. Nb5 {[%clk 0:02:45]}  Qe5+ {[%clk 0:02:23]} 9. Be2 {[%clk 0:02:39]}  Be6 {[%clk 0:02:14]} 10. O-O {[%clk 0:02:09]}  O-O-O {[%clk 0:02:09]} 11. Nd4 {[%clk 0:01:23]}  Nxd4 {[%clk 0:01:29]} 12. cxd4 {[%clk 0:01:24]}  Qd6 {[%clk 0:01:08]} 13. Nc3 {[%clk 0:01:14]}  g6 {[%clk 0:00:55]} 14. Ne4 {[%clk 0:01:03]}  Qb6 {[%clk 0:00:49]} 15. a4 {[%clk 0:00:57]}  Bg7 {[%clk 0:00:47]} 16. Nc5 {[%clk 0:00:55]}  Bf5 {[%clk 0:00:37]} 17. a5 {[%clk 0:00:52]}  Qf6 {[%clk 0:00:34]} 18. Qb3 {[%clk 0:00:47]}  Qc6 {[%clk 0:00:33]} 19. a6 {[%clk 0:00:27]}  b6 {[%clk 0:00:33]} 20. Nb7 {[%clk 0:00:23]}  Bxd4 {[%clk 0:00:30]} 21. Bb5 {[%clk 0:00:18]}  Qc7 {[%clk 0:00:19]} 22. Bg5 {[%clk 0:00:16]}  Be5 {[%clk 0:00:11]} 23. Rac1 {[%clk 0:00:16]}  Bxh2+ {[%clk 0:00:08]} 24. Kh1 {[%clk 0:00:16]}  Kb8 {[%clk 0:00:08]} 25. Rxc7 {[%clk 0:00:15]}  Bxc7 {[%clk 0:00:09]} 26. Nxd8 {[%clk 0:00:15]}  Rxd8 {[%clk 0:00:09]} 27. Bc6 {[%clk 0:00:16]}  Be4 {[%clk 0:00:08]} 28. f3 {[%clk 0:00:15]}  f6 {[%clk 0:00:03]} 29. fxe4 {[%clk 0:00:15]}  fxg5 {[%clk 0:00:02]} 30. Bxd5 {[%clk 0:00:15]}  Bd6 {[%clk 0:00:03]} 31. Qb5 {[%clk 0:00:16]}  Rc8 {[%clk 0:00:03]} 32. Qd7 {[%clk 0:00:16]}  Rc7 {[%clk 0:00:04]} 33. Rf8+ {[%clk 0:00:15]}  Rc8 {[%clk 0:00:05]} 34. Qb7# {[%clk 0:00:16]} 1-0


[Site "https://www.chess.com"]